fUSD/lending_fUSD_20251130
["ID","MTS","AMOUNT","RATE_DAILY","PERIOD"]
[395203049,1764540645774,-534.42146095,0.00016973,2]
[395203050,1764540645784,-500.69719188,0.00016973,2]
[395203051,1764540645793,-500.0,0.00016973,2]
[395203052,1764540645802,-500.0,0.00016973,2]
[395203053,1764540645812,-500.0,0.00016973,2]
[395203054,1764540645822,-168.14188112,0.00016973,2]
[395203055,1764540645831,-179.01901015,0.00016973,2]
[395203056,1764540645841,-165.35460481,0.00016973,2]
[395203057,1764540645851,-500.0,0.00016973,2]
[395203058,1764540645860,-500.0,0.00016973,2]
[395203059,1764540645870,-164.85180001,0.00016973,2]
[395203060,1764540645879,-500.0,0.00016983,2]
[395203061,1764540645888,-227.01812306,0.00016986,2]
[395203062,1764540645898,-273.54418308,0.00016986,2]
[395203063,1764540645908,-251.67385662,0.00016986,2]
[395203064,1764540645918,-151.01025846,0.00016986,2]
[395203065,1764540645928,-209.47404101,0.00016986,2]
[395203066,1764540645938,-274.74372107,0.00016986,2]
[395203067,1764540645948,-151.45547775,0.00016986,2]
[395203072,1764540646047,-171.5497114,0.00016986,2]
[395203074,1764540646057,-161.93782085,0.00016986,2]
[395203076,1764540646066,-159.46069334,0.00016986,2]
[395203077,1764540646075,-171.40825347,0.00016986,2]
[395203078,1764540646084,-151.54770866,0.00016986,2]
[395203079,1764540646094,-272.71931473,0.00016986,2]
[395203080,1764540646103,-224.64222611,0.00016986,2]
[395203081,1764540646112,-158.64772779,0.00016986,2]
[395203082,1764540646121,-500.0,0.00016989,2]
[395203083,1764540646130,-500.0,0.00016989,2]
[395203084,1764540646139,-492.9693918,0.0001699,2]
[395203085,1764540646148,-492.9693918,0.0001699,2]
[395203086,1764540646157,-511.88,0.00016997,2]
[395203087,1764540646167,-151.0,0.00016997,2]
[395203088,1764540646176,-500.0,0.00016998,2]
[395203089,1764540646185,-500.0,0.00016998,2]
[395203090,1764540646194,-500.0,0.00016998,2]
[395203091,1764540646203,-500.0,0.00016998,2]
[395203092,1764540646212,-24667.3729407,0.00016999,2]
[395203093,1764540646221,-6546.6505853,0.00016999,2]
[395203094,1764540646230,-373973.7804184,0.00016999,2]
[395203095,1764540646239,-231.9921206,0.00016999,2]
[395203096,1764540646249,-1689.7982143,0.00016999,2]
[395203097,1764540646261,-300.0,0.00016999,2]
[395203098,1764540646270,-500.0,0.00016999,2]
[395203099,1764540646280,-500.0,0.00016999,2]
[395203100,1764540646289,-500.0,0.00016999,2]
[395203101,1764540646299,-500.0,0.00016999,2]
[395203102,1764540646308,-500.0,0.00016999,2]
[395203103,1764540646318,-500.0,0.00016999,2]
[395203104,1764540646326,-500.0,0.00016999,2]
[395203105,1764540646335,-500.0,0.00016999,2]
[395203106,1764540646344,-500.0,0.00016999,2]
[395203107,1764540646354,-500.0,0.00016999,2]
[395203108,1764540646363,-500.0,0.00016999,2]
[395203109,1764540646373,-500.0,0.00016999,2]
[395203110,1764540646382,-500.0,0.00016999,2]
[395203111,1764540646392,-511.1,0.00016999,2]
[395203112,1764540646401,-300.0,0.00016999,2]
[395203113,1764540646411,-300.0,0.00016999,2]
[395203114,1764540646420,-300.0,0.00016999,2]
[395203115,1764540646429,-75567.6436389,0.00016999,2]
[395203116,1764540646438,-2467746.30620903,0.00017,2]
[395203163,1764540647434,-262.3445791,0.0001577,2]
[395203164,1764540647443,-4541.90182459,0.00017,2]
[395203165,1764540647454,-665.07682292,0.00017,2]
[395203166,1764540647465,-6865.63692011,0.00017,2]
[395203167,1764540647476,-251.37,0.00017,2]
[395203168,1764540647487,-2050.77884625,0.00017,2]
[395203169,1764540647505,-1253287.67339901,0.00017,2]
[395203170,1764540647516,-2341003.66992406,0.00017,2]
[395203171,1764540647535,-562.73,0.00017,2]
[395203172,1764540647545,-7847.57915688,0.00017,2]
[395203173,1764540647555,-523.34287504,0.00017,2]
[395203174,1764540647568,-1632.39067581,0.00017,2]
[395203175,1764540647582,-817.31434984,0.00017,2]
[395203176,1764540647754,-3583.24167825,0.00017,2]
[395203177,1764540647765,-451.395,0.00017,2]
[395203178,1764540647776,-1233.02197146,0.00017,2]
[395203179,1764540647795,-317.98213626,0.00017,2]
[395203180,1764540647805,-2343.68669856,0.00017,2]
[395203181,1764540647961,-150.0,0.00016059,2]
[395203182,1764540647970,-262.3445791,0.00016147,2]
[395203183,1764540647979,-820.71028411,0.000169,2]
[395203184,1764540647988,-13206.62990309,0.00017,2]
[395203185,1764540647999,-6610.21274598,0.00017,2]
[395203186,1764540648010,-3360.73249961,0.00017,2]
[395203187,1764540648022,-838.520007,0.00017,2]
[395203188,1764540648032,-1120.2199675,0.00017,2]
[395203189,1764540648047,-769.46801563,0.00017,2]
[395203190,1764540648058,-4328.40000409,0.00017,2]
[395203191,1764540648069,-1800.0,0.00017,2]
[395203192,1764540648083,-956.0,0.00017,2]
[395203193,1764541492983,150.0,0.000145,4]
[395203194,1764541577722,6086.44945283,0.000209,30]
[395203210,1764541831387,-316.24,0.0001351,2]
[395203211,1764541831397,-250.0,0.00013531,2]
[395203212,1764541831407,-150.0,0.00013552,2]
[395203213,1764541831416,-200.0,0.00013615,2]
[395203214,1764541831424,-1353.95217302,0.00013713,2]
[395203215,1764541831436,-3507.10652302,0.00013713,2]
[395203216,1764541831452,-960.97130396,0.00013713,2]
[395203217,1764541831461,-300.0,0.00013721,2]
[395203218,1764541831470,-1200.0,0.00013721,2]
[395203219,1764541831479,-51.73998393,0.00013722,2]
[395203220,1764541831491,-2699.26001607,0.00013722,2]
[395203221,1764541831499,-150.35,0.00013876,2]
[395203222,1764541831509,-200.0,0.00013933,2]
[395203223,1764541831518,-163.96536199,0.00014163,2]
[395203224,1764541831527,-820.79,0.0001426,2]
[395203225,1764541831536,-160.45456652,0.00014261,2]
[395203226,1764541831545,-150.0,0.00014262,2]
[395203227,1764541831554,-9999.99,0.00014262,2]
[395203228,1764541831563,-999.99,0.00014262,2]
[395203229,1764541831572,-1005.206,0.00014263,2]
[395203230,1764541831582,-2135.31776971,0.00014263,2]
[395203231,1764541831598,-764.90197859,0.00014263,2]
[395203232,1764541831609,-740.54678011,0.00014263,2]
[395203246,1764541837563,-1504.058768,0.00013442,2]
[395203247,1764541837572,-6442.55966905,0.00014263,2]
[395203248,1764541837583,-7965.89385437,0.00014263,2]
[395203249,1764541837592,-9044.5805,0.00014263,2]
[395203250,1764541837601,-1643.52,0.00014263,2]
[395203251,1764541837610,-800.2773,0.00014263,2]
[395203252,1764541837619,-760000.0,0.00014263,2]
[395203253,1764541837627,-150.99,0.00014263,2]
[395203254,1764541837636,-161.32,0.00014264,2]
[395203255,1764541837646,-500.0,0.00014353,2]
[395203256,1764541837655,-209.76091634,0.00014353,2]
[395203257,1764541837664,-282.05452837,0.00014353,2]
[395203258,1764541837674,-269.49955479,0.00014353,2]
[395203259,1764541837683,-200.0,0.00014354,2]
[395203261,1764541837692,-151.0,0.00014354,2]
[395203263,1764541837701,-151.0,0.00014354,2]
[395203265,1764541837710,-200.0,0.00014354,2]
[395203267,1764541837719,-151.0,0.00014354,2]
[395203269,1764541837728,-500.0,0.00014354,2]
[395203271,1764541837738,-151.0,0.00014354,2]
[395203273,1764541837747,-151.0,0.00014354,2]
[395203275,1764541837755,-151.0,0.00014354,2]
[395203277,1764541837765,-151.0,0.00014354,2]
[395203279,1764541837774,-151.0,0.00014354,2]
[395203281,1764541837783,-151.0,0.00014354,2]
[395203283,1764541837792,-151.0,0.00014354,2]
[395203285,1764541837801,-151.0,0.00014354,2]
[395203287,1764541837810,-151.0,0.00014354,2]
[395203289,1764541837819,-151.0,0.00014354,2]
[395203291,1764541837828,-500.0,0.00014354,2]
[395203293,1764541837837,-500.0,0.00014354,2]
[395203295,1764541837846,-500.0,0.00014354,2]
[395203297,1764541837855,-500.0,0.00014354,2]
[395203298,1764541837864,-500.0,0.00014354,2]
[395203300,1764541837873,-500.0,0.00014354,2]
[395203303,1764541837884,-500.0,0.00014354,2]
[395203304,1764541837894,-500.0,0.00014354,2]
[395203307,1764541837903,-500.0,0.00014354,2]
[395203309,1764541837913,-500.0,0.00014354,2]
[395203311,1764541837923,-500.0,0.00014354,2]
[395203312,1764541837934,-500.0,0.00014354,2]
[395203314,1764541837943,-500.0,0.00014354,2]
[395203316,1764541837953,-200.0,0.00014354,2]
[395203318,1764541837962,-500.0,0.00014362,2]
[395203320,1764541837971,-500.0,0.00014362,2]
[395203322,1764541837983,-500.0,0.00014362,2]
[395203325,1764541837993,-500.0,0.00014362,2]
[395203327,1764541838003,-500.0,0.00014362,2]
[395203328,1764541838013,-500.0,0.00014362,2]
[395203331,1764541838023,-500.0,0.00014362,2]
[395203332,1764541838032,-500.0,0.00014362,2]
[395203335,1764541838042,-500.0,0.00014362,2]
[395203337,1764541838051,-500.0,0.00014362,2]
[395203339,1764541838061,-500.18909078,0.00014362,2]
[395203341,1764541838070,-500.0,0.00014362,2]
[395203343,1764541838081,-500.0,0.00014362,2]
[395203345,1764541838091,-500.0,0.00014362,2]
[395203347,1764541838103,-500.0,0.00014362,2]
[395203349,1764541838112,-500.0,0.00014362,2]
[395203351,1764541838121,-500.0,0.00014362,2]
[395203353,1764541838130,-500.0,0.00014362,2]
[395203355,1764541838140,-500.0,0.00014362,2]
[395203357,1764541838150,-500.0,0.00014362,2]
[395203358,1764541838160,-500.0,0.00014362,2]
[395203361,1764541838169,-500.0,0.00014362,2]
[395203363,1764541838181,-500.0,0.00014362,2]
[395203365,1764541838193,-500.0,0.00014362,2]
[395203367,1764541838202,-500.0,0.00014362,2]
[395203369,1764541838212,-500.0,0.00014362,2]
[395203371,1764541838221,-500.0,0.00014362,2]
[395203373,1764541838230,-384.83885913,0.00014363,2]
[395203374,1764541838240,-600.0,0.00014363,2]
[395203376,1764541838249,-1000.0,0.00014364,2]
[395203379,1764541838259,-301.34471525,0.00014463,2]
[395203380,1764541838268,-500.0,0.00014463,2]
[395203382,1764541838278,-500.0,0.00014463,2]
[395203384,1764541838287,-500.0,0.00014463,2]
[395203386,1764541838297,-323.68835638,0.00014463,2]
[395203388,1764541838306,-500.0,0.00014463,2]
[395203390,1764541838315,-500.0,0.00014463,2]
[395203392,1764541838325,-223.40328839,0.00014463,2]
[395203394,1764541838334,-500.0,0.00014463,2]
[395203396,1764541838343,-410.13294145,0.00014463,2]
[395203398,1764541838352,-500.0,0.00014463,2]
[395203400,1764541838361,-500.0,0.00014463,2]
[395203402,1764541838370,-500.0,0.00014463,2]
[395203404,1764541838380,-151.0,0.00014521,2]
[395203406,1764541838389,-163.96536193,0.00014554,2]
[395203408,1764541838399,-10083.32619742,0.00014556,2]
[395203410,1764541838408,-7965.89385434,0.00014556,2]
[395203412,1764541838417,-600.0,0.00014637,2]
[395203414,1764541838427,-150.35,0.00014743,2]
[395203416,1764541838436,-10083.32619742,0.00014849,2]
[395203418,1764541838445,-7965.89385434,0.00014849,2]
[395203420,1764541838454,-250.0,0.00014861,2]
[395203423,1764541838463,-300.0,0.00014861,2]
[395203424,1764541838472,-300.0,0.00014861,2]
[395203427,1764541838482,-195.0,0.00014861,2]
[395203429,1764541838491,-250.0,0.00014861,2]
[395203431,1764541838500,-195.0,0.00014861,2]
[395203433,1764541838509,-195.0,0.00014861,2]
[395203434,1764541838519,-200.0,0.00014902,2]
[395203436,1764541838528,-200.0,0.00014902,2]
[395203438,1764541838537,-600.0,0.00014911,2]
[395203441,1764541838547,-163.96536193,0.00014945,2]
[395203443,1764541838556,-195.0,0.00014977,2]
[395203444,1764541838565,-45866.7203699,0.00015,4]
[395203446,1764541838574,-9999.999999,0.00015,2]
[395203448,1764541838582,-7652.65,0.00015025,2]
[395203450,1764541838592,-420.0,0.00015036,2]
[395203452,1764541838601,-151.0,0.00015069,2]
[395203454,1764541838611,-1680.0,0.00015093,2]
[395203457,1764541838622,-10083.32619742,0.00015142,2]
[395203459,1764541838630,-7965.89385434,0.00015142,2]
[395203460,1764541838639,-600.0,0.00015185,2]
[395203462,1764541838649,-1517.64,0.000153,2]
[395203464,1764541838658,-163.96536193,0.00015336,2]
[395203466,1764541838667,-364.03759616,0.00015342,2]
[395203468,1764541838677,-199.11281885,0.00015342,2]
[395203470,1764541838686,-358.40307393,0.00015342,2]
[395203473,1764541838696,-255.0,0.00015389,2]
[395203475,1764541838706,-11857.78639408,0.000154,2]
[395203477,1764541838715,-504.53167572,0.000154,2]
[395203478,1764541838725,-10083.32619742,0.00015435,2]
[395203481,1764541838735,-7965.89385434,0.00015435,2]
[395203483,1764541838745,-200.0,0.0001545,2]
[395203485,1764541838754,-200.0,0.0001545,2]
[395203486,1764541838763,-600.0,0.00015459,2]
[395203488,1764541838773,-150.35,0.0001561,2]
[395203491,1764541838782,-151.0,0.00015617,2]
[395203492,1764541838793,-831.0,0.00015726,2]
[395203495,1764541838802,-1250.0,0.00015726,2]
[395203497,1764541838811,-163.96536193,0.00015727,2]
[395203499,1764541838820,-10083.32619742,0.00015728,2]
[395203500,1764541838830,-7965.89385434,0.00015728,2]
[395203503,1764541838846,-1000.0,0.0001573,2]
[395203506,1764541838859,-600.0,0.00015733,2]
[395203508,1764541838869,-1000.0,0.00015808,2]
[395203510,1764541838878,-670.68075762,0.0001599,2]
[395203512,1764541838888,-151.0,0.00015997,2]
[395203514,1764541838898,-200.0,0.00015998,2]
[395203516,1764541838908,-200.0,0.00015998,2]
[395203518,1764541838917,-501.71453986,0.00016,2]
[395203520,1764541838926,-23666.07387272,0.00016,2]
[395203522,1764541838936,-217943.91760979,0.00016,2]
[395203524,1764541838945,-265893.91621147,0.00016,4]
[395203526,1764541838954,-600.0,0.00016007,2]
[395203528,1764541838964,-10083.32619742,0.00016021,2]
[395203530,1764541838973,-7965.89385434,0.00016021,2]
[395203532,1764541838983,-498.79760824,0.00016049,2]
[395203534,1764541838992,-500.0,0.00016054,2]
[395203536,1764541839002,-150.0,0.00016059,2]
[395203538,1764541839011,-150.0,0.00016059,2]
[395203540,1764541839021,-150.0,0.00016059,2]
[395203542,1764541839031,-500.0,0.00016059,2]
[395203544,1764541839041,-153.48713579,0.00016059,2]
[395203546,1764541839050,-500.0,0.00016059,2]
[395203548,1764541839060,-150.000001,0.00016059,2]
[395203550,1764541839070,-151.49686011,0.00016059,2]
[395203552,1764541839080,-150.0,0.00016059,2]
[395203554,1764541839090,-150.0,0.00016059,2]
[395203556,1764541839101,-150.0,0.00016059,2]
[395203558,1764541839112,-150.0,0.00016059,2]
[395203560,1764541839122,-150.0,0.00016059,2]
[395203561,1764541839132,-153.0061579,0.00016059,2]
[395203562,1764541839143,-150.0,0.00016059,2]
[395203563,1764541839153,-151.73896267,0.00016059,2]
[395203564,1764541839163,-154.64526929,0.00016059,2]
[395203565,1764541839173,-251.62347752,0.00016059,2]
[395203566,1764541839185,-151.5737728,0.00016059,2]
[395203567,1764541839195,-150.0,0.00016059,2]
[395203568,1764541839204,-500.0,0.00016059,2]
[395203569,1764541839214,-150.0,0.00016059,2]
[395203570,1764541839227,-150.0,0.00016059,2]
[395203571,1764541839237,-150.0,0.00016059,2]
[395203572,1764541839247,-9999.99,0.00016116,2]
[395203573,1764541839256,-163.96536193,0.00016118,2]
[395203574,1764541839265,-4211.77765298,0.00016149,2]
[395203575,1764541839275,-578.20924308,0.00016149,2]
[395203576,1764541839286,-533.88981491,0.00016149,2]
[395203577,1764541839295,-151.0,0.00016149,2]
[395203579,1764541839305,-160.0,0.00016149,2]
[395203581,1764541839314,-151.0,0.00016149,2]
[395203583,1764541839323,-151.0,0.00016149,2]
[395203585,1764541839333,-151.0,0.00016149,2]
[395203587,1764541839342,-194.72792766,0.00016149,2]
[395203589,1764541839350,-151.0,0.00016149,2]
[395203591,1764541839359,-151.0,0.00016149,2]
[395203593,1764541839369,-151.0,0.00016149,2]
[395203595,1764541839378,-151.0,0.00016149,2]
[395203597,1764541839387,-151.0,0.00016149,2]
[395203599,1764541839395,-151.0,0.00016149,2]
[395203601,1764541839404,-151.0,0.00016149,2]
[395203603,1764541839413,-8000.0,0.00016149,2]
[395203605,1764541839422,-151.0,0.00016149,2]
[395203607,1764541839431,-8000.0,0.00016149,2]
[395203609,1764541839440,-8000.0,0.00016149,2]
[395203611,1764541839449,-151.0,0.00016149,2]
[395203613,1764541839458,-151.0,0.00016149,2]
[395203615,1764541839467,-8000.0,0.00016149,2]
[395203617,1764541839476,-151.0,0.00016149,2]
[395203619,1764541839485,-500.0,0.00016149,2]
[395203662,1764541839850,-8000.0,0.00016149,2]
[395203664,1764541839864,-500.0,0.00016149,2]
[395203666,1764541839874,-8000.0,0.00016149,2]
[395203668,1764541839883,-151.0,0.00016149,2]
[395203670,1764541839892,-500.0,0.00016149,2]
[395203672,1764541839901,-8000.0,0.00016149,2]
[395203674,1764541839910,-500.0,0.00016149,2]
[395203676,1764541839919,-8000.0,0.00016149,2]
[395203678,1764541839928,-1000.0,0.00016149,2]
[395203680,1764541839937,-7437.42744146,0.00016149,2]
[395203682,1764541839947,-500.0,0.00016149,2]
[395203684,1764541839956,-500.0,0.00016149,2]
[395203686,1764541839965,-1000.0,0.00016149,2]
[395203688,1764541839975,-322.6107,0.00016149,2]
[395203690,1764541839984,-500.0,0.00016149,2]
[395203693,1764541839993,-1000.0,0.00016149,2]
[395203695,1764541840002,-194.72792766,0.00016149,2]
[395203697,1764541840011,-1000.0,0.00016149,2]
[395203699,1764541840020,-1000.0,0.00016149,2]
[395203700,1764541840030,-767.61793263,0.00016149,2]
[395203702,1764541840039,-1000.0,0.00016149,2]
[395203704,1764541840049,-250.0,0.00016149,2]
[395203706,1764541840060,-1000.0,0.00016149,2]
[395203708,1764541840069,-250.0,0.00016149,2]
[395203711,1764541840079,-1000.0,0.00016149,2]
[395203713,1764541840089,-250.0,0.00016149,2]
[395203714,1764541840100,-1000.0,0.00016149,2]
[395203717,1764541840111,-250.0,0.00016149,2]
[395203719,1764541840121,-1000.0,0.00016149,2]
[395203721,1764541840131,-250.0,0.00016149,2]
[395203723,1764541840141,-1000.0,0.00016149,2]
[395203724,1764541840151,-250.0,0.00016149,2]
[395203726,1764541840160,-1000.0,0.00016149,2]
[395203728,1764541840169,-250.0,0.00016149,2]
[395203730,1764541840182,-500.0,0.00016149,2]
[395203732,1764541840192,-1000.0,0.00016149,2]
[395203734,1764541840201,-500.0,0.00016149,2]
[395203736,1764541840211,-250.0,0.00016149,2]
[395203738,1764541840220,-500.0,0.00016149,2]
[395203740,1764541840229,-250.0,0.00016149,2]
[395203742,1764541840238,-500.0,0.00016149,2]
[395203744,1764541840246,-500.0,0.00016149,2]
[395203746,1764541840256,-250.0,0.00016149,2]
[395203748,1764541840264,-500.0,0.00016149,2]
[395203750,1764541840273,-500.0,0.00016149,2]
[395203752,1764541840282,-250.0,0.00016149,2]
[395203754,1764541840291,-500.0,0.00016149,2]
[395203756,1764541840299,-500.0,0.00016149,2]
[395203758,1764541840308,-3000.0,0.00016149,2]
[395203760,1764541840317,-250.0,0.00016149,2]
[395203762,1764541840326,-250.0,0.00016149,2]
[395203764,1764541840335,-500.0,0.00016149,2]
[395203766,1764541840343,-500.0,0.00016149,2]
[395203768,1764541840352,-500.0,0.00016149,2]
[395203770,1764541840361,-250.0,0.00016149,2]
[395203772,1764541840370,-250.0,0.00016149,2]
[395203774,1764541840378,-500.0,0.00016149,2]
[395203776,1764541840387,-500.0,0.00016149,2]
[395203778,1764541840396,-500.0,0.00016149,2]
[395203780,1764541840405,-250.0,0.00016149,2]
[395203782,1764541840414,-500.0,0.00016149,2]
[395203784,1764541840423,-500.0,0.00016149,2]
[395203786,1764541840432,-500.0,0.00016149,2]
[395203788,1764541840442,-250.0,0.00016149,2]
[395203790,1764541840452,-500.0,0.00016149,2]
[395203792,1764541840461,-500.0,0.00016149,2]
[395203794,1764541840469,-250.0,0.00016149,2]
[395203796,1764541840478,-250.0,0.00016149,2]
[395203798,1764541840486,-500.0,0.00016149,2]
[395203799,1764541840495,-500.0,0.00016149,2]
[395203802,1764541840504,-250.0,0.00016149,2]
[395203804,1764541840513,-250.0,0.00016149,2]
[395203806,1764541840522,-500.0,0.00016149,2]
[395203807,1764541840531,-500.0,0.00016149,2]
[395203809,1764541840540,-250.0,0.00016149,2]
[395203811,1764541840549,-250.0,0.00016149,2]
[395203814,1764541840559,-620.0,0.00016149,2]
[395203816,1764541840568,-500.0,0.00016149,2]
[395203818,1764541840577,-500.0,0.00016149,2]
[395203820,1764541840586,-250.0,0.00016149,2]
[395203822,1764541840594,-250.0,0.00016149,2]
[395203824,1764541840603,-250.0,0.00016149,2]
[395203826,1764541840613,-500.0,0.00016149,2]
[395203828,1764541840622,-250.0,0.00016149,2]
[395203830,1764541840631,-500.0,0.00016149,2]
[395203832,1764541840640,-250.0,0.00016149,2]
[395203834,1764541840648,-250.0,0.00016149,2]
[395203836,1764541840657,-250.0,0.00016149,2]
[395203838,1764541840666,-500.0,0.00016149,2]
[395203840,1764541840675,-250.0,0.00016149,2]
[395203842,1764541840684,-500.0,0.00016149,2]
[395203844,1764541840693,-250.0,0.00016149,2]
[395203846,1764541840702,-250.0,0.00016149,2]
[395203848,1764541840711,-500.0,0.00016149,2]
[395203849,1764541840720,-250.0,0.00016149,2]
[395203851,1764541840728,-250.0,0.00016149,2]
[395203853,1764541840737,-500.0,0.00016149,2]
[395203855,1764541840745,-250.0,0.00016149,2]
[395203857,1764541840754,-158.33980161,0.00016149,2]
[395203859,1764541840763,-250.0,0.00016149,2]
[395203861,1764541840772,-250.0,0.00016149,2]
[395203863,1764541840781,-151.0,0.00016149,2]
[395203865,1764541840789,-250.0,0.00016149,2]
[395203867,1764541840798,-151.0,0.00016149,2]
[395203869,1764541840807,-151.0,0.00016149,2]
[395203871,1764541840816,-151.0,0.00016149,2]
[395203873,1764541840824,-151.0,0.00016149,2]
[395203875,1764541840834,-151.0,0.00016149,2]
[395203877,1764541840843,-1000.0,0.00016149,2]
[395203879,1764541840851,-300.0,0.00016149,2]
[395203881,1764541840860,-151.0,0.00016149,2]
[395203883,1764541840869,-1000.0,0.00016149,2]
[395203885,1764541840878,-151.0,0.00016149,2]
[395203887,1764541840887,-1000.0,0.00016149,2]
[395203889,1764541840897,-151.0,0.00016149,2]
[395203891,1764541840906,-1000.0,0.00016149,2]
[395203893,1764541840914,-151.0,0.00016149,2]
[395203895,1764541840923,-1000.0,0.00016149,2]
[395203897,1764541840932,-151.0,0.00016149,2]
[395203899,1764541840941,-1000.0,0.00016149,2]
[395203901,1764541840950,-151.0,0.00016149,2]
[395203903,1764541840958,-1000.0,0.00016149,2]
[395203905,1764541840967,-151.0,0.00016149,2]
[395203907,1764541840976,-1000.0,0.00016149,2]
[395203909,1764541840985,-151.0,0.00016149,2]
[395203911,1764541840994,-1000.0,0.00016149,2]
[395203913,1764541841004,-1000.0,0.00016149,2]
[395203915,1764541841012,-1000.0,0.00016149,2]
[395203917,1764541841021,-1000.0,0.00016149,2]
[395203919,1764541841030,-1000.0,0.00016149,2]
[395203921,1764541841039,-257.91778498,0.00016149,2]
[395203923,1764541841048,-172.5678492,0.0001615,2]
[395203925,1764541841057,-151.0,0.00016165,2]
[395203927,1764541841066,-280.06662226,0.00016196,2]
[395203929,1764541841075,-175.06872145,0.00016196,2]
[395203931,1764541841084,-235.29372692,0.00016196,2]
[395203933,1764541841094,-500.0,0.00016196,2]
[395203935,1764541841107,-500.0,0.00016196,2]
[395203937,1764541841115,-150.0,0.00016196,2]
[395203939,1764541841124,-150.0,0.00016196,2]
[395203941,1764541841133,-150.0,0.00016196,2]
[395203943,1764541841142,-150.0,0.00016196,2]
[395203945,1764541841153,-150.0,0.00016196,2]
[395203947,1764541841163,-500.0,0.00016196,2]
[395203949,1764541841172,-200.0,0.00016196,2]
[395203951,1764541841184,-150.0,0.00016196,2]
[395203953,1764541841194,-5000.00947869,0.000162,5]
[395203955,1764541841204,-600.0,0.00016281,2]
[395203957,1764541841213,-10083.32619742,0.00016314,2]
[395203959,1764541841222,-7965.89385434,0.00016314,2]
[395203961,1764541841231,-500.0,0.00016333,2]
[395203963,1764541841241,-500.0,0.00016333,2]
[395203965,1764541841250,-150.0,0.00016333,2]
[395203967,1764541841259,-150.0,0.00016333,2]
[395203969,1764541841268,-250.0,0.00016333,2]
[395203971,1764541841276,-250.0,0.00016333,2]
[395203973,1764541841285,-500.0,0.00016333,2]
[395203975,1764541841294,-150.0,0.00016333,2]
[395203977,1764541841303,-200.0,0.0001634,2]
[395203979,1764541841312,-1000.0,0.000164,2]
[395203981,1764541841321,-5434.75,0.00016438,2]
[395203983,1764541841330,-500.0,0.0001647,2]
[395203985,1764541841338,-500.0,0.0001647,2]
[395203987,1764541841347,-165.64877047,0.0001647,2]
[395203989,1764541841356,-500.0,0.0001647,2]
[395203991,1764541841365,-150.0,0.0001647,2]
[395203993,1764541841374,-150.35,0.00016478,2]
[395203995,1764541841383,-180.0,0.00016478,2]
[395203997,1764541841392,-163.96536193,0.00016509,2]
[395203999,1764541841401,-200.0,0.00016546,2]
[395204001,1764541841411,-200.0,0.00016546,2]
[395204003,1764541841420,-600.0,0.00016555,2]
[395204005,1764541841428,-1998.22847857,0.000166,2]
[395204007,1764541841437,-433.0,0.00016601,2]
[395204009,1764541841446,-2351.0,0.00016602,2]
[395204011,1764541841455,-500.0,0.00016607,2]
[395204013,1764541841465,-500.0,0.00016607,2]
[395204015,1764541841474,-500.0,0.00016607,2]
[395204017,1764541841483,-214.93375674,0.00016607,2]
[395204019,1764541841493,-10083.32619742,0.00016607,2]
[395204021,1764541841501,-7965.89385434,0.00016607,2]